bitfinex-derivatives/quotes_SOLF0:USTF0_20250803
["timestamp","ask_amount","ask_price","bid_price","bid_amount"]
[1754217882135,6.24560793,161.67,161.66,14.71176393]
[1754217882336,6.24560793,161.67,161.66,9.536]
[1754217883935,6.24560793,161.67,161.66,14.71176393]
[1754217884135,6.24560793,161.67,161.66,9.536]
[1754217884536,6.24560793,161.67,161.66,14.71176393]
[1754217887136,6.24560793,161.67,161.66,9.536]
[1754217887329,6.24560793,161.67,161.66,14.71176393]
[1754217887935,6.24560793,161.67,161.66,9.536]
[1754217889045,6.24560793,161.67,161.66,3.35]
[1754217891237,6.24560793,161.67,161.66,14.71176393]
[1754217896840,3.34,161.67,161.66,14.71176393]
[1754217897035,6.24584806,161.67,161.66,14.71176393]
[1754217897742,6.24584806,161.67,161.66,8.52576393]
[1754217899136,2.90584806,161.67,161.66,8.52576393]
[1754217900144,6.36584806,161.67,161.66,8.52576393]
[1754217905451,6.36584806,161.67,161.66,8.54576393]
[1754217909748,12.55144806,161.67,161.64,5.17576393]
[1754217909947,2.90584806,161.66,161.64,5.17576393]
[1754217910144,6.08584806,161.65,161.64,8.54576393]
[1754217911047,6.08584806,161.65,161.64,5.17576393]
[1754217911252,6.08584806,161.65,161.64,8.54576393]
[1754217913059,6.08698173,161.65,161.64,8.54576393]
[1754217914760,6.08698173,161.65,161.64,3.37]
[1754217921961,6.08698173,161.65,161.63,5.17920809]
[1754217922165,112.32,161.75,161.63,5.17920809]
[1754217922166,6.08698173,161.64,161.63,3.37]
[1754217938065,3.35,161.64,161.63,3.37]
[1754217938271,6.26049666,161.64,161.63,3.37]
[1754217939075,6.26049666,161.64,161.63,9.5571]
[1754217940275,6.26049666,161.64,161.63,3.37]
[1754217941177,6.26049666,161.64,161.63,14.73630809]
[1754217943277,6.26049666,161.64,161.63,3.37]
[1754217943472,6.26049666,161.64,161.63,8.54920809]
[1754217943872,6.26049666,161.64,161.63,14.73630809]
[1754217944376,6.26199487,161.64,161.63,14.73630809]
[1754217945881,6.26199487,161.64,161.63,8.54920809]
[1754217951183,6.26199487,161.64,161.63,14.73630809]
[1754217952183,2.91199487,161.64,161.63,14.73630809]
[1754217952481,6.26199487,161.64,161.63,14.73630809]
[1754217953375,6.26199487,161.64,161.63,9.5571]
[1754217958089,6.26199487,161.64,161.63,3.37]
[1754217958586,2.91199487,161.64,161.63,3.19]
[1754217958787,6.26199487,161.64,161.63,3.19]
[1754217959590,6.26199487,161.64,161.63,10.08399084]
[1754217959790,6.26199487,161.64,161.63,16.27109084]
[1754217961393,6.26199487,161.64,161.63,9.3771]
[1754217963404,2.91199487,161.64,161.63,9.3771]
[1754217965201,6.19199487,161.64,161.63,9.3771]
[1754217966207,2.91199487,161.64,161.63,9.3771]
[1754217966397,6.19199487,161.64,161.63,9.3771]
[1754217976408,6.19199487,161.64,161.63,16.29015755]
[1754217982012,3.28,161.67,161.65,3.4]
[1754217982212,3.28,161.67,161.64,6.91508832]
[1754217982412,3.28,161.67,161.66,8.58471886]
[1754217982712,3.28,161.67,161.66,14.77071886]
[1754217982911,3.28,161.75,161.66,5.18471886]
[1754217983210,3.28,161.74,161.68,5.18471886]
[1754217983407,13.92679838,161.75,161.68,5.18471886]
[1754217983408,3.28,161.72,161.68,5.18471886]
[1754217984218,3.28,161.72,161.67,8.58471886]
[1754217985305,3.28,161.71,161.68,6.1852]
[1754217986717,3.28,161.71,161.68,9.5852]
[1754217989122,3.28,161.71,161.69,3.4]
[1754217989521,3.28,161.71,161.69,9.5847]
[1754217994825,3.28,161.71,161.69,3.4]
[1754217995321,9.4641,161.71,161.69,3.4]
[1754217995525,3.19,161.7,161.69,3.4]
[1754217996126,3.19,161.7,161.68,9.6351]
[1754217997126,3.19,161.7,161.69,3.45]
[1754218003827,3.19,161.7,161.69,9.6348]
[1754218004041,3.19,161.7,161.69,3.45]
[1754218006232,3.19,161.7,161.69,9.6348]
[1754218006833,3.19,161.7,161.69,3.45]
[1754218007631,115.35,161.7,161.69,3.45]
[1754218008131,3.19,161.7,161.69,3.45]
[1754218008333,115.35,161.7,161.69,9.6348]
[1754218008633,3.19,161.7,161.69,9.6348]
[1754218008937,3.19,161.7,161.69,3.45]
[1754218009333,112.16,161.71,161.69,3.45]
[1754218009532,3.19,161.7,161.69,3.45]
[1754218012240,3.19,161.72,161.69,3.45]
[1754218012438,3.19,161.71,161.69,3.45]
[1754218013234,3.19,161.71,161.7,6.1843]
[1754218013436,3.19,161.71,161.7,9.6343]
[1754218016544,3.19,161.71,161.69,6.1847]
[1754218016842,3.19,161.71,161.7,3.45]
[1754218019645,121.5338,161.72,161.7,3.45]
[1754218020450,3.19,161.71,161.7,3.45]
[1754218020645,121.5338,161.72,161.7,3.45]
[1754218020848,115.35,161.72,161.7,9.6342]
[1754218021148,3.19,161.72,161.7,9.6342]
[1754218021352,112.14,161.71,161.7,9.6342]
[1754218021850,115.33,161.71,161.7,9.6342]
[1754218023952,112.14,161.71,161.7,9.6342]
[1754218025152,115.61,161.71,161.7,9.6342]
[1754218030966,3.47,161.73,161.71,6.184]
[1754218031160,3.47,161.73,161.72,3.37]
[1754218031459,115.59,161.73,161.72,3.37]
[1754218033261,115.59,161.73,161.72,6.1837]
[1754218033262,3.47,161.73,161.72,6.1837]
[1754218033561,3.47,161.72,161.71,3.37]
[1754218035069,3.47,161.72,161.71,9.554]
[1754218041668,3.47,161.78,161.72,3.37]
[1754218041867,3.47,161.78,161.74,3.37]
[1754218042070,3.47,161.78,161.74,8.54459412]
[1754218042267,3.47,161.78,161.75,3.37]
[1754218042967,3.47,161.78,161.77,9.5518]
[1754218043176,3.47,161.78,161.75,3.37]
[1754218044671,3.47,161.78,161.75,9.5525]
[1754218044871,3.47,161.78,161.75,3.37]
[1754218045068,3.47,161.78,161.72,5.17459412]
[1754218045271,3.47,161.76,161.74,9.5526]
[1754218045472,3.47,161.76,161.75,3.37]
[1754218047181,3.47,161.76,161.75,9.5525]
[1754218047782,3.47,161.77,161.75,9.5525]
[1754218047980,3.47,161.77,161.76,3.37]
[1754218048479,3.47,161.77,161.76,9.5521]
[1754218048684,3.47,161.77,161.76,3.37]
[1754218049087,3.47,161.77,161.75,3.37]
[1754218049487,3.47,161.77,161.73,3.37]
[1754218049785,5.34434277,161.79,161.69,5.17459412]
[1754218049786,3.47,161.75,161.69,5.17459412]
[1754218049986,115.57,161.75,161.7,3.37]
[1754218050185,3.47,161.74,161.7,3.37]
[1754218050391,3.47,161.74,161.71,6.1839]
[1754218050587,3.47,161.74,161.72,3.37]
[1754218050981,3.47,161.73,161.72,9.5533]
[1754218051684,3.23,161.74,161.72,6.1833]
[1754218051885,3.23,161.74,161.73,3.52]
[1754218052289,3.23,161.74,161.73,9.7033]
[1754218057584,112.12,161.77,161.74,6.1826]
[1754218057788,3.23,161.76,161.73,3.52]
[1754218058388,3.23,161.76,161.75,9.7024]
[1754218058893,3.23,161.76,161.75,3.52]
[1754218061496,3.23,161.76,161.74,9.7028]
[1754218061690,9.4122,161.76,161.72,3.52]
[1754218061993,3.23,161.75,161.72,3.52]
[1754218062191,3.23,161.75,161.72,9.7037]
[1754218062390,3.23,161.75,161.73,3.52]
[1754218063995,6.1826,161.75,161.73,3.52]
[1754218064294,3.23,161.74,161.72,3.52]
[1754218064699,3.23,161.74,161.73,3.52]
[1754218065286,3.23,161.74,161.72,3.52]
[1754218065796,3.23,161.74,161.71,6.1838]
[1754218065996,3.23,161.74,161.73,3.52]
[1754218068202,3.23,161.75,161.73,3.52]
[1754218068897,3.23,161.75,161.73,9.7033]
[1754218069097,3.23,161.75,161.74,3.52]
[1754218073299,3.23,161.75,161.74,9.7029]
[1754218073600,112.26,161.76,161.75,3.52]
[1754218073796,115.49,161.76,161.75,3.52]
[1754218074295,115.49,161.76,161.75,9.7025]
[1754218075798,115.49,161.76,161.75,3.52]
[1754218076303,112.26,161.76,161.75,9.7025]
[1754218077405,115.49,161.76,161.75,9.7025]
[1754218085111,3.23,161.76,161.75,9.7025]
[1754218087512,3.23,161.76,161.75,14.87709412]
[1754218087809,3.27,161.77,161.75,5.17459412]
[1754218088214,3.27,161.77,161.76,9.5621]
[1754218088602,3.27,161.77,161.75,5.17459412]
[1754218088804,3.27,161.77,161.74,8.55459412]
[1754218089022,3.27,161.77,161.75,9.5625]
[1754218089605,3.27,161.77,161.74,5.17459412]
[1754218089811,3.27,161.77,161.72,6.91508832]
[1754218089812,3.27,161.77,161.73,3.38]
[1754218090616,3.27,161.77,161.75,3.38]
[1754218091009,3.27,161.77,161.74,9.5629]
[1754218091616,3.27,161.77,161.75,3.38]
[1754218092315,3.27,161.77,161.74,9.5629]
[1754218092516,3.27,161.77,161.75,3.38]
[1754218092912,112.64,161.78,161.75,3.38]
[1754218093116,3.27,161.78,161.76,3.38]
[1754218093314,116.47,161.77,161.76,3.38]
[1754218094615,116.47,161.77,161.76,9.5621]
[1754218095009,113.2,161.77,161.76,9.5621]
[1754218095215,116.47,161.77,161.76,9.5621]
[1754218097619,3.27,161.77,161.76,9.5621]
[1754218098417,8.61434277,161.79,161.76,3.38]
[1754218098616,118.60434277,161.79,161.76,3.38]
[1754218098817,3.27,161.78,161.76,3.38]
[1754218099220,118.60434277,161.79,161.77,6.1815]
[1754218099413,118.60434277,161.79,161.78,3.38]
[1754218099820,121.87434277,161.79,161.78,3.38]
[1754218100326,121.87434277,161.79,161.78,9.5614]
[1754218107130,118.60434277,161.79,161.78,9.5614]
[1754218107727,121.87434277,161.79,161.78,9.5614]
[1754218113043,118.60434277,161.79,161.78,9.5614]
[1754218113339,121.95434277,161.79,161.78,9.5614]
[1754218116646,118.60434277,161.79,161.78,9.5614]
[1754218116836,119.48434277,161.79,161.78,9.5614]
[1754218117036,122.83434277,161.79,161.78,9.5614]
[1754218123052,122.83434277,161.79,161.78,6.1814]
[1754218123245,122.83434277,161.79,161.78,9.6014]
[1754218127652,122.83434277,161.79,161.78,6.1814]
[1754218128453,122.83434277,161.79,161.78,9.6014]
[1754218130456,122.83434277,161.79,161.78,6.1814]
[1754218130954,122.83434277,161.79,161.78,9.6014]
[1754218147261,8.69434277,161.79,161.78,9.6014]
[1754218147469,122.67434277,161.79,161.78,9.6014]
[1754218148067,122.65434277,161.79,161.78,9.6014]
[1754218148971,122.65434277,161.79,161.78,3.42]
[1754218149969,122.70434277,161.79,161.78,8.59459412]
[1754218153973,119.30434277,161.79,161.78,14.77599412]
[1754218154172,5.34434277,161.79,161.78,14.77599412]
[1754218154472,114.32,161.8,161.79,3.23]
[1754218154674,114.32,161.8,161.79,9.4107]
[1754218155574,117.72,161.81,161.8,3.23]
[1754218156373,3.4,161.81,161.8,9.4106]
[1754218156574,117.68,161.81,161.8,9.4106]
[1754218159080,117.68,161.81,161.8,3.23]
[1754218159280,3.4,161.8,161.79,3.23]
[1754218161275,3.4,161.8,161.79,9.411]
[1754218161773,3.4,161.8,161.79,3.23]
[1754218166072,117.68,161.81,161.79,6.1809]
[1754218166377,117.68,161.81,161.8,3.23]
[1754218168376,114.28,161.81,161.8,3.23]
[1754218168576,117.68,161.81,161.8,3.23]
[1754218177386,3.4,161.81,161.8,3.23]
[1754218177687,117.52,161.81,161.8,3.23]
[1754218179189,3.4,161.81,161.8,3.23]
[1754218179885,117.48,161.81,161.8,3.23]
[1754218180084,3.4,161.81,161.8,3.23]
[1754218180284,117.48,161.81,161.8,3.23]
[1754218182083,117.48,161.81,161.8,9.4106]
[1754218182283,117.48,161.81,161.8,9.3606]
[1754218182880,117.4,161.81,161.8,9.3606]
[1754218188390,117.4,161.81,161.8,3.18]
[1754218188892,117.4,161.81,161.79,5.18501703]
[1754218189107,3.32,161.8,161.79,3.18]
[1754218190292,3.32,161.8,161.79,9.361]
[1754218190589,114.08,161.81,161.78,5.18501703]
[1754218190590,117.4,161.81,161.8,3.18]
[1754218192099,117.4,161.81,161.8,9.3606]
[1754218192700,3.32,161.8,161.79,8.36501703]
[1754218193601,3.32,161.8,161.79,5.18501703]
[1754218194903,3.32,161.8,161.79,8.36501703]
[1754218195998,114.08,161.81,161.79,14.54571703]
[1754218196205,117.4,161.81,161.8,3.18]
[1754218203416,3.32,161.81,161.8,3.18]
[1754218203614,117.3,161.81,161.8,3.18]
[1754218204411,117.3,161.81,161.79,8.65501703]
[1754218204712,3.19,161.8,161.78,8.65501703]
[1754218204913,3.19,161.8,161.78,3.47]
[1754218205310,3.19,161.78,161.76,5.18501703]
[1754218205619,3.19,161.76,161.75,8.65501703]
[1754218205914,3.19,161.75,161.74,5.18501703]
[1754218206112,3.19,161.75,161.73,8.65501703]
[1754218206614,3.19,161.75,161.74,3.47]
[1754218207818,3.19,161.74,161.72,3.47]
[1754218208015,113.96,161.74,161.72,3.47]
[1754218208219,3.19,161.73,161.72,3.47]
[1754218209923,3.19,161.72,161.71,0.25373]
[1754218210216,3.19,161.72,161.71,3.72373]
[1754218211219,9.3737,161.72,161.71,0.25373]
[1754218211826,6.1853,161.68,161.66,5.18501703]
[1754218212019,6.1853,161.68,161.65,3.47]
[1754218212020,3.19,161.67,161.65,3.47]
[1754218213127,3.19,161.67,161.66,3.47]
[1754218214529,3.19,161.67,161.65,3.47]
[1754218215023,3.19,161.66,161.61,5.18501703]
[1754218215229,3.19,161.64,161.62,3.47]
[1754218215627,3.19,161.64,161.63,3.47]
[1754218217129,2.91769,161.64,161.63,3.47]
[1754218218433,114.06,161.66,161.63,3.47]
[1754218219029,3.19,161.65,161.63,3.47]
[1754218220333,3.19,161.65,161.64,3.47]
[1754218224737,3.19,161.65,161.63,3.47]
[1754218225331,3.19,161.65,161.62,6.1874]
[1754218225635,3.19,161.65,161.64,3.47]
[1754218229946,9.3764,161.65,161.64,3.47]
[1754218230147,3.19,161.65,161.64,3.47]
[1754218231247,9.3764,161.65,161.64,3.47]
[1754218231648,3.19,161.65,161.64,3.47]
[1754218233351,9.3764,161.65,161.64,3.47]
[1754218234152,3.19,161.65,161.64,3.47]
[1754218234749,9.3764,161.65,161.64,3.47]
[1754218235152,3.28,161.64,161.6,3.49]
[1754218235849,3.28,161.64,161.62,3.49]
[1754218236753,3.28,161.63,161.62,3.49]
[1754218238049,3.28,161.63,161.61,3.49]
[1754218238257,113.7,161.63,161.61,3.49]
[1754218238451,3.28,161.62,161.61,3.49]
[1754218239156,3.28,161.62,161.59,245.62789617]
[1754218239157,6.1878,161.62,161.6,3.49]
[1754218239356,3.28,161.61,161.6,3.49]
[1754218241250,3.28,161.61,161.59,3.49]
[1754218241957,3.28,161.61,161.57,3.49]
[1754218242659,3.28,161.58,161.57,3.49]
[1754218243655,9.469,161.58,161.57,3.49]
[1754218246861,3.28,161.58,161.57,3.49]
[1754218250369,3.28,161.61,161.57,3.49]
[1754218250556,274.03855069,161.62,161.57,3.49]
[1754218250867,6.1881,161.61,161.57,3.49]
[1754218251066,3.28,161.6,161.57,3.49]
[1754218251765,3.28,161.6,161.58,3.49]
[1754218252468,6.1881,161.61,161.58,3.49]
[1754218252668,3.28,161.6,161.58,3.49]
[1754218253967,274.03855069,161.62,161.59,3.49]
[1754218254169,3.28,161.61,161.59,3.49]
[1754218254672,9.4681,161.61,161.59,3.49]
[1754218254858,3.28,161.6,161.59,3.49]
[1754218256568,3.28,161.59,161.58,3.49]
[1754218257670,3.28,161.6,161.58,3.49]
[1754218259669,3.28,161.59,161.58,3.49]
[1754218260970,6.188,161.61,161.58,3.49]
[1754218261173,3.28,161.6,161.58,3.49]
[1754218261369,3.28,161.6,161.58,9.679]
[1754218261671,3.28,161.6,161.59,3.49]
[1754218265076,9.4683,161.6,161.59,3.49]
[1754218265468,3.28,161.6,161.59,3.49]
[1754218266975,9.4683,161.6,161.59,3.49]
[1754218267568,9.4683,161.6,161.58,3.45]
[1754218267771,3.46,161.59,161.58,3.45]
[1754218268577,9.6486,161.59,161.58,3.45]
[1754218268773,3.46,161.59,161.57,3.45]
[1754218268978,3.46,161.58,161.57,3.45]
[1754218275380,9.649,161.58,161.57,3.45]
[1754218279879,113.56,161.59,161.53,8.63813577]
[1754218280090,113.56,161.59,161.53,3.45]
[1754218280680,114.63751614,161.59,161.51,5.18813577]
[1754218280881,6.1912,161.53,161.5,5.18813577]
[1754218281079,107.286,161.52,161.51,3.45]
[1754218281388,111.83739388,161.52,161.51,3.45]
[1754218281884,113.4773,161.52,161.51,3.45]
[1754218282084,107.286,161.52,161.51,3.45]
[1754218284087,113.4773,161.52,161.51,3.45]
[1754218284287,116.5073,161.52,161.51,3.45]
[1754218286985,116.5073,161.52,161.48,6.1927]
[1754218286986,6.1918,161.51,161.49,3.45]
[1754218287290,3.03,161.51,161.49,3.45]
[1754218288894,9.2218,161.51,161.49,3.45]
[1754218289086,3.03,161.51,161.49,3.45]
[1754218289893,110.3134,161.52,161.49,9.6424]
[1754218290088,110.3134,161.52,161.5,3.45]
[1754218298297,104.122,161.52,161.5,3.45]
[1754218298897,104.122,161.52,161.5,9.6419]
[1754218299097,104.122,161.52,161.51,3.41]
[1754218299294,113.34,161.57,161.51,3.41]
[1754218299993,6.1905,161.55,161.51,9.6017]
[1754218300193,6.1905,161.55,161.52,3.41]
[1754218301998,6.1899,161.56,161.53,3.41]
[1754218302501,113.34,161.57,161.53,3.41]
[1754218303698,6.1903,161.55,161.53,3.41]
[1754218304297,6.1899,161.56,161.53,3.41]
[1754218307903,113.34,161.57,161.53,3.41]
[1754218308300,6.1901,161.56,161.53,3.41]
[1754218311403,6.1903,161.55,161.53,3.41]
[1754218314006,113.34,161.57,161.53,3.41]
[1754218315308,119.5297,161.57,161.54,3.41]
[1754218316412,6.1898,161.56,161.54,3.41]
[1754218317304,119.5295,161.57,161.54,3.41]
[1754218318805,6.1898,161.56,161.54,3.41]
[1754218324920,119.5295,161.57,161.54,3.41]
[1754218334032,113.34,161.57,161.54,3.41]
[1754218335230,119.5294,161.57,161.54,3.41]
[1754218338531,113.34,161.57,161.54,3.41]
[1754218341433,119.5295,161.57,161.54,3.41]
[1754218346437,6.1898,161.56,161.54,3.41]
[1754218346638,113.1,161.55,161.54,3.41]
[1754218350042,113.1,161.55,161.52,14.76638916]
[1754218350241,113.1,161.55,161.53,3.37]
[1754218352134,113.1,161.55,161.52,3.26]
[1754218352744,6.1907,161.54,161.52,3.26]
[1754218364859,113.1,161.55,161.5,3.26]
[1754218365750,6.1907,161.54,161.5,6.192]
[1754218365950,6.1907,161.54,161.51,3.26]
[1754218373059,6.191,161.53,161.51,3.26]
[1754218373260,113.1,161.52,161.51,3.26]
[1754218381263,119.2913,161.52,161.51,3.26]
[1754218381559,119.2913,161.52,161.48,11.40075233]
[1754218381560,113.1,161.52,161.48,3.26]
[1754218381766,113.1,161.52,161.46,9.4533]
[1754218381767,6.192,161.51,161.46,9.4533]
[1754218381967,113.08,161.5,161.47,3.35]
[1754218382465,119.2724,161.5,161.47,3.35]
[1754218387467,113.08,161.5,161.47,3.35]
[1754218387667,113.08,161.5,161.46,3.35]
[1754218389866,6.1936,161.46,161.43,3.35]
[1754218390068,119.2736,161.46,161.43,3.35]
[1754218390561,113.08,161.46,161.43,3.35]
[1754218392567,113.08,161.46,161.42,6.195]
[1754218392768,113.08,161.46,161.43,3.35]
[1754218394676,119.2739,161.46,161.43,3.35]
[1754218395364,119.2739,161.46,161.41,6.1955]
[1754218395365,6.1941,161.45,161.41,6.1955]
[1754218395567,6.1941,161.45,161.42,3.35]
[1754218396470,113.08,161.46,161.43,3.35]
[1754218396673,113.08,161.46,161.42,3.35]
[1754218396874,113.08,161.46,161.37,5.20805233]
[1754218397074,6.1947,161.44,161.43,3.35]
[1754218398371,6.1947,161.44,161.42,3.35]
[1754218398564,119.2748,161.43,161.42,3.35]
[1754218398765,119.2948,161.43,161.42,3.35]
[1754218400870,113.1,161.43,161.42,3.35]
[1754218403875,6.1945,161.44,161.42,3.35]
[1754218404177,165.18649732,161.45,161.42,3.35]
[1754218404178,113.1,161.43,161.42,3.35]
[1754218406677,278.28649732,161.45,161.42,3.35]
[1754218408183,278.28649732,161.45,161.42,9.5449]
[1754218408481,278.28649732,161.45,161.42,6.1949]
[1754218408683,278.28649732,161.45,161.43,3.35]
[1754218417792,278.28649732,161.45,161.43,9.5446]
[1754218418187,278.28649732,161.45,161.44,3.44]
[1754218424599,284.48049732,161.45,161.44,3.44]
[1754218425299,6.1945,161.44,161.42,3.44]
[1754218425491,113.04,161.43,161.42,3.44]
[1754218430995,113.04,161.43,161.41,5.18872428]
[1754218431195,113.04,161.43,161.42,3.44]
[1754218437495,113.04,161.43,161.42,9.6352]
[1754218443105,113.04,161.43,161.42,3.44]
[1754218444611,113.04,161.43,161.42,9.6352]
[1754218445809,113.04,161.43,161.41,5.21459222]
[1754218446105,113.04,161.43,161.42,3.45]
[1754218453513,113.04,161.43,161.42,14.86353151]
[1754218456213,119.1741,161.45,161.42,11.41353151]
[1754218456413,119.1741,161.45,161.43,3.45]
[1754218458818,112.98,161.45,161.43,3.45]
[1754218459117,112.98,161.45,161.44,3.45]
[1754218466320,112.98,161.45,161.44,9.6444]
[1754218466524,112.98,161.45,161.44,3.45]
[1754218468221,112.98,161.45,161.44,9.6444]
[1754218468620,112.98,161.45,161.44,14.86634602]
[1754218468821,6.1923,161.5,161.45,6.1939]
[1754218469129,112.96,161.49,161.46,3.45]
[1754218471023,119.1525,161.49,161.46,3.45]
[1754218471415,119.1525,161.49,161.47,3.45]
[1754218472823,112.96,161.49,161.47,3.45]
[1754218473818,112.96,161.49,161.47,9.643]
[1754218474023,112.96,161.49,161.48,3.33]
[1754218474827,112.96,161.49,161.48,9.5229]
[1754218475024,112.96,161.49,161.48,3.33]
[1754218479122,112.96,161.49,161.48,9.5229]
[1754218483534,112.9,161.51,161.47,3.33]
[1754218483933,112.9,161.51,161.49,6.1921]
[1754218484134,112.9,161.51,161.47,8.55194602]
[1754218484434,112.9,161.51,161.48,3.33]
[1754218484634,112.9,161.51,161.49,6.1925]
[1754218484836,112.9,161.51,161.5,3.33]
[1754218486131,112.9,161.51,161.5,9.5221]
[1754218489934,422.4296,161.57,161.52,3.33]
[1754218490136,112.88,161.56,161.52,3.33]
[1754218490524,112.88,161.56,161.53,3.33]
[1754218492432,112.88,161.56,161.53,9.5209]
[1754218492626,112.88,161.56,161.54,3.33]
[1754218495036,416.24,161.57,161.54,3.33]
[1754218495238,112.84,161.6,161.52,3.33]
[1754218495536,112.84,161.59,161.54,3.33]
[1754218495736,112.84,161.59,161.58,3.33]
[1754218497440,112.84,161.59,161.58,9.519]
[1754218498240,112.84,161.59,161.58,3.33]
[1754218500238,112.84,161.59,161.58,9.519]
[1754218500441,394.16135333,161.64,161.53,3.33]
[1754218500736,112.8,161.63,161.53,3.33]
[1754218502044,112.8,161.63,161.61,3.17]
[1754218504144,112.8,161.63,161.61,9.3578]
[1754218504349,112.8,161.63,161.62,3.17]
[1754218509657,112.8,161.63,161.59,6.1886]
[1754218509954,112.8,161.63,161.57,3.17]
[1754218510150,112.8,161.63,161.56,238.82312798]
[1754218510354,112.8,161.63,161.59,3.17]
[1754218510758,6.1876,161.62,161.59,3.17]
[1754218510956,394.16135333,161.64,161.59,3.17]
[1754218510957,112.76,161.61,161.59,3.17]
[1754218511859,112.76,161.61,161.6,3.17]
[1754218512262,112.76,161.61,161.59,3.17]
[1754218514757,112.76,161.61,161.6,3.17]
[1754218521868,112.76,161.61,161.6,9.3583]
[1754218524266,112.76,161.61,161.6,3.17]
[1754218530973,112.76,161.61,161.6,9.3583]
[1754218539578,394.16135333,161.64,161.62,3.24]
[1754218539773,112.72,161.63,161.62,3.24]
[1754218540476,112.72,161.63,161.62,9.4272]
[1754218545476,112.72,161.63,161.62,3.24]
[1754218546475,112.72,161.63,161.58,5.16492873]
[1754218546682,112.72,161.63,161.6,3.24]
[1754218547080,118.9073,161.63,161.6,3.24]
[1754218548079,118.9073,161.63,161.61,3.24]
[1754218548886,6.1875,161.62,161.61,3.24]
[1754218553488,118.9072,161.63,161.61,3.24]
[1754218555594,162.15042984,161.64,161.61,3.24]
[1754218555893,112.7,161.63,161.61,3.24]
[1754218556095,112.7,161.63,161.62,6.1871]
[1754218556285,112.7,161.63,161.62,9.4271]
[1754218561590,274.83042984,161.64,161.63,3.24]
[1754218566504,281.01712984,161.64,161.62,3.35]
[1754218566901,274.83042984,161.64,161.62,3.35]
[1754218567100,6.1871,161.63,161.62,3.35]
[1754218567403,6.1871,161.63,161.59,11.35332873]
[1754218567404,274.83042984,161.64,161.61,3.35]
[1754218567800,6.1871,161.63,161.59,6.1886]
[1754218568002,112.68,161.62,161.59,6.1886]
[1754218568205,3.28,161.67,161.61,5.16492873]
[1754218568408,3.28,161.65,161.62,3.35]
[1754218568602,3.28,161.64,161.62,3.35]
[1754218570003,3.28,161.64,161.62,9.5375]
[1754218570198,3.28,161.64,161.63,3.35]
[1754218573105,9.4667,161.64,161.61,6.1878]
[1754218573305,3.28,161.63,161.62,3.35]
[1754218573913,116.48,161.63,161.62,3.35]
[1754218582707,113.2,161.63,161.62,3.35]